fUSD/lending_fUSD_20240519
["ID","MTS","AMOUNT","RATE_DAILY","PERIOD"]
[327455038,1716079851857,-500.0,0.00027671,2]
[327455039,1716079851866,-151.0,0.00027671,7]
[327455040,1716079851875,-500.0,0.00027671,2]
[327455041,1716079851884,-500.0,0.00027671,2]
[327455042,1716079851894,-500.0,0.00027671,2]
[327455043,1716079851903,-1067.83,0.00027671,2]
[327455044,1716079851912,-500.0,0.00027671,2]
[327455045,1716079851921,-333.5637902,0.00027671,2]
[327455046,1716079851933,-717.91,0.00027671,2]
[327455047,1716079851942,-464.916368,0.00027671,7]
[327455048,1716079851951,-500.0,0.00027671,2]
[327455049,1716079851960,-671.98,0.00027671,2]
[327455050,1716079851968,-464.916368,0.00027671,7]
[327455051,1716079851977,-414.26,0.00027671,2]
[327455052,1716079851987,-500.0,0.00027671,2]
[327455053,1716079851996,-500.0,0.00027671,2]
[327455054,1716079852005,-637.51,0.00027671,2]
[327455055,1716079852014,-151.0,0.00027671,7]
[327455056,1716079852023,-500.0,0.00027671,2]
[327455057,1716079852031,-709.05,0.00027671,2]
[327455058,1716079852040,-500.0,0.00027671,2]
[327455059,1716079852049,-159.007682,0.00027671,7]
[327455060,1716079852058,-1264.55,0.00027671,2]
[327455061,1716079852067,-151.0,0.00027671,7]
[327455062,1716079852076,-500.0,0.00027671,2]
[327455063,1716079852085,-753.77,0.00027671,2]
[327455064,1716079852094,-500.0,0.00027671,2]
[327455065,1716079852102,-500.0,0.00027671,2]
[327455066,1716079852111,-1101.63,0.00027671,2]
[327455067,1716079852120,-500.0,0.00027671,2]
[327455068,1716079852129,-1105.23,0.00027671,2]
[327455069,1716079852138,-151.0,0.00027671,7]
[327455070,1716079852147,-516.07,0.00027671,2]
[327455071,1716079852156,-151.0,0.00027671,7]
[327455072,1716079852165,-500.0,0.00027671,2]
[327455073,1716079852174,-500.0,0.00027671,2]
[327455074,1716079852183,-500.0,0.00027671,2]
[327455075,1716079852192,-1016.72,0.00027671,2]
[327455076,1716079852201,-500.0,0.00027671,2]
[327455077,1716079852209,-1552.71,0.00027671,2]
[327455078,1716079852220,-162.575913,0.00027671,7]
[327455079,1716079852228,-1614.27,0.00027671,2]
[327455080,1716079852238,-151.0,0.00027671,7]
[327455081,1716079852247,-822.34,0.00027671,2]
[327455082,1716079852256,-151.0,0.00027671,7]
[327455083,1716079852265,-500.0,0.00027671,2]
[327455084,1716079852274,-500.0,0.00027671,2]
[327455085,1716079852283,-745.19,0.00027671,2]
[327455086,1716079852292,-500.0,0.00027671,2]
[327455087,1716079852301,-861.8,0.00027671,2]
[327455088,1716079852310,-500.0,0.00027671,2]
[327455089,1716079852319,-500.0,0.00027671,2]
[327455090,1716079852328,-500.0,0.00027671,2]
[327455091,1716079852337,-867.38,0.00027671,2]
[327455092,1716079852345,-500.0,0.00027671,2]
[327455093,1716079852354,-790.2,0.00027671,2]
[327455094,1716079852363,-908.09,0.00027671,2]
[327455095,1716079852372,-500.0,0.00027671,2]
[327455096,1716079852381,-500.0,0.00027671,2]
[327455097,1716079852390,-500.0,0.00027671,2]
[327455098,1716079852399,-500.0,0.00027671,2]
[327455099,1716079852408,-507.25883444,0.00027671,2]
[327455100,1716079852417,-2847.34,0.00027671,2]
[327455101,1716079852426,-500.0,0.00027671,2]
[327455102,1716079852434,-500.0,0.00027671,2]
[327455103,1716079852443,-500.0,0.00027671,2]
[327455104,1716079852452,-500.0,0.00027671,2]
[327455105,1716079852461,-500.0,0.00027671,2]
[327455106,1716079852469,-231.081675,0.00027671,7]
[327455107,1716079852478,-500.0,0.00027671,2]
[327455108,1716079852487,-500.0,0.00027671,2]
[327455109,1716079852497,-231.081675,0.00027671,7]
[327455110,1716079852506,-500.0,0.00027671,2]
[327455111,1716079852515,-500.0,0.00027671,2]
[327455112,1716079852524,-513.94836026,0.00027671,2]
[327455113,1716079852533,-500.0,0.00027671,2]
[327455114,1716079852543,-500.0,0.00027671,2]
[327455115,1716079852553,-500.0,0.00027671,2]
[327455116,1716079852562,-879.34,0.00027671,2]
[327455117,1716079852571,-500.0,0.00027671,2]
[327455118,1716079852580,-1800.44,0.00027671,2]
[327455119,1716079852589,-500.0,0.00027671,2]
[327455120,1716079852599,-500.0,0.00027671,2]
[327455121,1716079852608,-500.0,0.00027671,2]
[327455122,1716079852617,-751.88,0.00027671,2]
[327455123,1716079852626,-500.0,0.00027671,2]
[327455124,1716079852635,-690.03,0.00027671,2]
[327455125,1716079852644,-596.95,0.00027671,2]
[327455126,1716079852654,-1239.57,0.00027671,2]
[327455127,1716079852662,-311.691066,0.00027671,7]
[327455128,1716079852671,-202.79525226,0.00027671,2]
[327455129,1716079852680,-311.691066,0.00027671,7]
[327455130,1716079852689,-209.044597,0.00027671,7]
[327455131,1716079852699,-500.0,0.00027671,2]
[327455132,1716079852708,-694.45,0.00027671,2]
[327455133,1716079852717,-500.0,0.00027671,2]
[327455134,1716079852726,-209.044597,0.00027671,7]
[327455135,1716079852735,-536.32,0.00027671,2]
[327455136,1716079852744,-500.0,0.00027671,2]
[327455137,1716079852753,-576.24,0.00027671,2]
[327455138,1716079852762,-500.0,0.00027671,2]
[327455139,1716079852771,-500.0,0.00027671,2]
[327455140,1716079852780,-2119.09,0.00027671,2]
[327455141,1716079852789,-500.0,0.00027671,2]
[327455142,1716079852799,-500.0,0.00027671,2]
[327455143,1716079852808,-151.621189,0.00027671,7]
[327455144,1716079852817,-500.0,0.00027671,2]
[327455145,1716079852826,-500.0,0.00027671,2]
[327455146,1716079852835,-214.06,0.00027671,2]
[327455147,1716079852844,-500.0,0.00027671,2]
[327455148,1716079852858,-500.0,0.00027671,2]
[327455149,1716079852867,-500.0,0.00027671,2]
[327455150,1716079852876,-151.0,0.00027671,7]
[327455151,1716079852884,-500.0,0.00027671,2]
[327455152,1716079852893,-224.36875559,0.00027671,2]
[327455153,1716079852902,-500.0,0.00027671,2]
[327455154,1716079852911,-500.0,0.00027671,2]
[327455155,1716079852920,-500.0,0.00027671,2]
[327455156,1716079852929,-500.0,0.00027671,2]
[327455157,1716079852938,-500.0,0.00027671,2]
[327455158,1716079852947,-2258.52,0.00027671,2]
[327455159,1716079852956,-500.0,0.00027671,2]
[327455160,1716079852965,-500.0,0.00027671,2]
[327455161,1716079852974,-515.33,0.00027671,2]
[327455162,1716079852983,-500.0,0.00027671,2]
[327455163,1716079852992,-582.13,0.00027671,2]
[327455164,1716079853002,-500.0,0.00027671,2]
[327455165,1716079853011,-500.0,0.00027671,2]
[327455166,1716079853020,-663.78,0.00027671,2]
[327455167,1716079853030,-592.94,0.00027671,2]
[327455168,1716079853040,-500.0,0.00027671,2]
[327455169,1716079853049,-500.0,0.00027671,2]
[327455170,1716079853058,-500.0,0.00027671,2]
[327455171,1716079853067,-500.0,0.00027671,2]
[327455172,1716079853077,-663.37,0.00027671,2]
[327455173,1716079853086,-596.02,0.00027671,2]
[327455174,1716079853095,-2187.67,0.00027671,2]
[327455175,1716079853104,-500.0,0.00027671,2]
[327455176,1716079853114,-252.86873,0.00027671,7]
[327455177,1716079853124,-500.0,0.00027671,2]
[327455178,1716079853133,-500.0,0.00027671,2]
[327455179,1716079853142,-500.0,0.00027671,2]
[327455180,1716079853152,-500.0,0.00027671,2]
[327455181,1716079853170,-897.21,0.00027671,2]
[327455182,1716079853179,-500.0,0.00027671,2]
[327455183,1716079853188,-500.0,0.00027671,2]
[327455184,1716079853197,-500.0,0.00027671,2]
[327455185,1716079853206,-151.0,0.00027671,7]
[327455186,1716079853216,-1986.87,0.00027671,2]
[327455187,1716079853225,-252.86873,0.00027671,7]
[327455188,1716079853235,-567.98,0.00027671,2]
[327455189,1716079853244,-643.54,0.00027671,2]
[327455190,1716079853255,-649.98,0.00027671,2]
[327455191,1716079853264,-2292.47,0.00027671,2]
[327455192,1716079853275,-500.0,0.00027671,2]
[327455193,1716079853284,-2459.44,0.00027671,2]
[327455194,1716079853293,-151.0,0.00027671,7]
[327455195,1716079853303,-702.64,0.00027671,2]
[327455196,1716079853312,-8969.82,0.00027671,2]
[327455197,1716079853321,-500.0,0.00027671,2]
[327455198,1716079853331,-500.0,0.00027671,2]
[327455199,1716079853340,-1618.24,0.00027671,2]
[327455200,1716079853349,-500.0,0.00027671,2]
[327455201,1716079853359,-2898.95,0.00027671,2]
[327455202,1716079853368,-500.0,0.00027671,2]
[327455203,1716079853377,-7341.3,0.00027671,2]
[327455204,1716079853387,-500.0,0.00027671,2]
[327455205,1716079853396,-859.92,0.00027671,2]
[327455206,1716079853407,-500.0,0.00027671,2]
[327455207,1716079853416,-597.52,0.00027671,2]
[327455208,1716079853425,-2396.63,0.00027671,2]
[327455209,1716079853435,-847.62,0.00027671,2]
[327455210,1716079853444,-676.53,0.00027671,2]
[327455211,1716079853453,-813.35,0.00027671,2]
[327455212,1716079853463,-1434.0,0.00027671,2]
[327455213,1716079853472,-151.0,0.00027671,7]
[327455214,1716079853482,-9386.79,0.00027671,2]
[327455215,1716079853491,-151.0,0.00027671,7]
[327455216,1716079853503,-168.46,0.00027671,2]
[327455217,1716079853513,-500.0,0.00027671,2]
[327455218,1716079853522,-756.32,0.00027671,2]
[327455219,1716079853532,-151.0,0.00027671,7]
[327455220,1716079853541,-30275.28,0.00027671,2]
[327455221,1716079853551,-1856.14,0.00027671,2]
[327455222,1716079853560,-4020.85,0.00027671,2]
[327455223,1716079853570,-762.31,0.00027671,2]
[327455224,1716079853580,-500.0,0.00027671,2]
[327455225,1716079853589,-500.0,0.00027671,2]
[327455226,1716079853598,-4821.09,0.00027671,2]
[327455227,1716079853607,-768.86,0.00027671,2]
[327455228,1716079853617,-1175.05,0.00027671,2]
[327455229,1716079853626,-500.0,0.00027671,2]
[327455230,1716079853635,-500.0,0.00027671,2]
[327455231,1716079853645,-500.0,0.00027671,2]
[327455232,1716079853655,-614.98,0.00027671,2]
[327455233,1716079853664,-500.0,0.00027671,2]
[327455234,1716079853673,-8593.12,0.00027671,2]
[327455235,1716079853683,-994.65,0.00027671,2]
[327455236,1716079853692,-616.67,0.00027671,2]
[327455237,1716079853702,-500.0,0.00027671,2]
[327455238,1716079853711,-900.63,0.00027671,2]
[327455239,1716079853720,-4266.05,0.00027671,2]
[327455240,1716079853730,-966.41,0.00027671,2]
[327455241,1716079853740,-912.23,0.00027671,2]
[327455242,1716079853751,-211.25,0.00027671,2]
[327455243,1716079853760,-500.0,0.00027671,2]
[327455244,1716079853770,-500.0,0.00027671,2]
[327455245,1716079853780,-500.0,0.00027671,2]
[327455246,1716079853789,-645.69,0.00027671,2]
[327455247,1716079853799,-1869.0,0.00027671,2]
[327455248,1716079853808,-151.0,0.00027671,7]
[327455249,1716079853818,-500.0,0.00027671,2]
[327455250,1716079853827,-500.0,0.00027671,2]
[327455251,1716079853836,-971.87,0.00027671,2]
[327455252,1716079853846,-6268.94,0.00027671,2]
[327455253,1716079853861,-500.0,0.00027671,2]
[327455254,1716079853870,-541.88,0.00027671,2]
[327455255,1716079853880,-942.94,0.00027671,2]
[327455256,1716079853890,-973.68,0.00027671,2]
[327455257,1716079853900,-500.0,0.00027671,2]
[327455258,1716079853909,-500.0,0.00027671,2]
[327455259,1716079853918,-544.611513,0.00027671,7]
[327455260,1716079853929,-500.0,0.00027671,2]
[327455261,1716079853938,-1701.01,0.00027671,2]
[327455262,1716079853947,-7483.61,0.00027671,2]
[327455263,1716079853957,-500.0,0.00027671,2]
[327455264,1716079853967,-544.611513,0.00027671,7]
[327455265,1716079853976,-500.0,0.00027671,2]
[327455266,1716079853986,-500.0,0.00027671,2]
[327455267,1716079853996,-500.0,0.00027671,2]
[327455268,1716079854006,-500.0,0.00027671,2]
[327455269,1716079854015,-1401.02,0.00027671,2]
[327455270,1716079854024,-676.79,0.00027671,2]
[327455271,1716079854034,-423.17435613,0.00027671,2]
[327455272,1716079854043,-500.0,0.00027671,2]
[327455273,1716079854052,-537.08,0.00027671,2]
[327455274,1716079854062,-500.0,0.00027671,2]
[327455275,1716079854071,-6981.65,0.00027671,2]
[327455276,1716079854081,-500.0,0.00027671,2]
[327455277,1716079854090,-2717.83,0.00027671,2]
[327455278,1716079854100,-838.88,0.00027671,2]
[327455279,1716079854109,-584.96,0.00027671,2]
[327455280,1716079854119,-502.76,0.00027671,2]
[327455281,1716079854128,-2645.1,0.00027671,2]
[327455282,1716079854138,-500.0,0.00027671,2]
[327455283,1716079854147,-500.0,0.00027671,2]
[327455284,1716079854156,-500.0,0.00027671,2]
[327455285,1716079854167,-865.2,0.00027671,2]
[327455286,1716079854177,-1132.35,0.00027671,2]
[327455287,1716079854187,-812.15,0.00027671,2]
[327455288,1716079854196,-530.646126,0.00027671,7]
[327455289,1716079854206,-1556.62,0.00027671,2]
[327455290,1716079854215,-718.44,0.00027671,2]
[327455291,1716079854224,-1265.15,0.00027671,2]
[327455292,1716079854234,-530.646126,0.00027671,7]
[327455293,1716079854243,-14055.37,0.00027671,2]
[327455294,1716079854253,-2634.63,0.00027671,2]
[327455295,1716079854263,-15063.88,0.00027671,2]
[327455296,1716079854273,-500.0,0.00027671,2]
[327455297,1716079854283,-2652.66,0.00027671,2]
[327455298,1716079854292,-621.16,0.00027671,2]
[327455299,1716079854302,-742.79,0.00027671,2]
[327455300,1716079854311,-500.0,0.00027671,2]
[327455301,1716079854321,-500.0,0.00027671,2]
[327455302,1716079854331,-794.5,0.00027671,2]
[327455303,1716079854340,-1250.69,0.00027671,2]
[327455304,1716079854350,-693.14,0.00027671,2]
[327455305,1716079854360,-500.0,0.00027671,2]
[327455306,1716079854370,-418.09268527,0.00027671,2]
[327455307,1716079854379,-889.38,0.00027671,2]
[327455308,1716079854389,-1988.34,0.00027671,2]
[327455309,1716079854399,-500.0,0.00027671,2]
[327455310,1716079854409,-1357.07,0.00027671,2]
[327455311,1716079854419,-998.68,0.00027671,2]
[327455312,1716079854428,-500.0,0.00027671,2]
[327455313,1716079854438,-5624.591496,0.00027671,7]
[327455314,1716079854448,-500.0,0.00027671,2]
[327455315,1716079854457,-500.0,0.00027671,2]
[327455316,1716079854467,-500.0,0.00027671,2]
[327455317,1716079854476,-500.0,0.00027671,2]
[327455318,1716079854486,-500.0,0.00027671,2]
[327455319,1716079854496,-601.38,0.00027671,2]
[327455320,1716079854506,-500.0,0.00027671,2]
[327455321,1716079854515,-5624.591496,0.00027671,7]
[327455322,1716079854525,-894.0,0.00027671,2]
[327455323,1716079854536,-2431.12,0.00027671,2]
[327455324,1716079854546,-1539.56,0.00027671,2]
[327455325,1716079854555,-511.27,0.00027671,2]
[327455326,1716079854565,-500.0,0.00027671,2]
[327455327,1716079854575,-500.0,0.00027671,2]
[327455328,1716079854584,-500.0,0.00027671,2]
[327455329,1716079854594,-151.0,0.00027671,7]
[327455330,1716079854604,-1396.22,0.00027671,2]
[327455331,1716079854614,-151.0,0.00027671,7]
[327455332,1716079854623,-500.0,0.00027671,2]
[327455333,1716079854632,-151.0,0.00027671,7]
[327455334,1716079854642,-1300.21,0.00027671,2]
[327455335,1716079854651,-2267.23,0.00027671,2]
[327455336,1716079854661,-1327.72,0.00027671,2]
[327455337,1716079854671,-500.0,0.00027671,2]
[327455338,1716079854680,-151.0,0.00027671,7]
[327455339,1716079854690,-500.0,0.00027671,2]
[327455340,1716079854700,-151.0,0.00027671,7]
[327455341,1716079854709,-500.0,0.00027671,2]
[327455342,1716079854719,-3187.9,0.00027671,2]
[327455343,1716079854729,-500.0,0.00027671,2]
[327455344,1716079854739,-1229.67,0.00027671,2]
[327455345,1716079854748,-1554.51,0.00027671,2]
[327455346,1716079854758,-500.0,0.00027671,2]
[327455347,1716079854768,-500.0,0.00027671,2]
[327455348,1716079854778,-500.0,0.00027671,2]
[327455349,1716079854788,-902.06,0.00027671,2]
[327455350,1716079854797,-500.0,0.00027671,2]
[327455351,1716079854807,-500.0,0.00027671,2]
[327455352,1716079854817,-500.0,0.00027671,2]
[327455353,1716079854827,-739.0,0.00027671,2]
[327455354,1716079854836,-744.32,0.00027671,2]
[327455355,1716079854846,-151.0,0.00027671,7]
[327455356,1716079854859,-500.0,0.00027671,2]
[327455357,1716079854869,-566.09,0.00027671,2]
[327455358,1716079854879,-151.0,0.00027671,7]
[327455359,1716079854889,-2317.87,0.00027671,2]
[327455360,1716079854898,-500.0,0.00027671,2]
[327455361,1716079854907,-500.0,0.00027671,2]
[327455362,1716079854917,-1543.54,0.00027671,2]
[327455363,1716079854926,-500.0,0.00027671,2]
[327455364,1716079854936,-500.0,0.00027671,2]
[327455365,1716079854946,-500.0,0.00027671,2]
[327455366,1716079854955,-562.56,0.00027671,2]
[327455367,1716079854965,-1576.46,0.00027671,2]
[327455368,1716079854975,-500.0,0.00027671,2]
[327455369,1716079854984,-500.0,0.00027671,2]
[327455370,1716079854994,-1727.73,0.00027671,2]
[327455371,1716079855005,-1192.7,0.00027671,2]
[327455372,1716079855015,-702.53,0.00027671,2]
[327455373,1716079855025,-500.0,0.00027671,2]
[327455374,1716079855036,-500.0,0.00027671,2]
[327455375,1716079855045,-902.92,0.00027671,2]
[327455376,1716079855055,-500.0,0.00027671,2]
[327455377,1716079855065,-500.0,0.00027671,2]
[327455378,1716079855075,-750.17,0.00027671,2]
[327455379,1716079855084,-500.0,0.00027671,2]
[327455380,1716079855094,-683.13,0.00027671,2]
[327455381,1716079855105,-1571.87,0.00027671,2]
[327455382,1716079855114,-500.0,0.00027671,2]
[327455383,1716079855321,-1391.44,0.00027671,2]
[327455384,1716079855332,-1593.16,0.00027671,2]
[327455385,1716079855341,-500.0,0.00027671,2]
[327455386,1716079855352,-500.0,0.00027671,2]
[327455387,1716079855361,-734.3,0.00027671,2]
[327455388,1716079855371,-723.24,0.00027671,2]
[327455389,1716079855380,-765.2,0.00027671,2]
[327455390,1716079855390,-500.0,0.00027671,2]
[327455391,1716079855399,-1006.36,0.00027671,2]
[327455392,1716079855408,-500.0,0.00027671,2]
[327455393,1716079855418,-1946.51,0.00027671,2]
[327455394,1716079855427,-500.0,0.00027671,2]
[327455395,1716079855436,-500.0,0.00027671,2]
[327455396,1716079855445,-500.0,0.00027671,2]
[327455397,1716079855455,-1321.13,0.00027671,2]
[327455398,1716079855464,-737.65,0.00027671,2]
[327455399,1716079855473,-500.0,0.00027671,2]
[327455400,1716079855483,-340.963945,0.00027671,7]
[327455401,1716079855492,-500.0,0.00027671,2]
[327455402,1716079855503,-500.0,0.00027671,2]
[327455403,1716079855512,-976.72,0.00027671,2]
[327455404,1716079855524,-500.0,0.00027671,2]
[327455405,1716079855533,-182.997182,0.00027671,7]
[327455406,1716079855543,-340.963945,0.00027671,7]
[327455407,1716079855552,-1844.47,0.00027671,2]
[327455408,1716079855562,-500.0,0.00027671,2]
[327455409,1716079855572,-500.0,0.00027671,2]
[327455410,1716079855581,-1337.56,0.00027671,2]
[327455411,1716079855591,-892.71,0.00027671,2]
[327455412,1716079855600,-609.15,0.00027671,2]
[327455413,1716079855610,-182.997182,0.00027671,7]
[327455414,1716079855620,-500.0,0.00027671,2]
[327455415,1716079855629,-500.0,0.00027671,2]
[327455416,1716079855638,-188.05373082,0.00027671,2]
[327455417,1716079855649,-713.62,0.00027671,2]
[327455418,1716079855658,-2601.94,0.00027671,2]
[327455419,1716079855667,-500.0,0.00027671,2]
[327455420,1716079855676,-1338.29,0.00027671,2]
[327455421,1716079855687,-500.0,0.00027671,2]
[327455422,1716079855696,-877.48,0.00027671,2]
[327455423,1716079855706,-500.0,0.00027671,2]
[327455424,1716079855715,-500.0,0.00027671,2]
[327455425,1716079855725,-955.29,0.00027671,2]
[327455426,1716079855734,-3753.72,0.00027671,2]
[327455427,1716079855744,-500.0,0.00027671,2]
[327455428,1716079855754,-3260.19,0.00027671,2]
[327455429,1716079855763,-500.0,0.00027671,2]
[327455430,1716079855773,-500.0,0.00027671,2]
[327455431,1716079855782,-2742.03,0.00027671,2]
[327455432,1716079855791,-1111.7,0.00027671,2]
[327455433,1716079855800,-151.0,0.00027671,7]
[327455434,1716079855810,-1864.26,0.00027671,2]
[327455435,1716079855819,-500.0,0.00027671,2]
[327455436,1716079855828,-500.0,0.00027671,2]
[327455437,1716079855837,-292.06704401,0.00027671,2]
[327455438,1716079855847,-500.0,0.00027671,2]
[327455439,1716079855860,-500.0,0.00027671,2]
[327455440,1716079855870,-151.0,0.00027671,7]
[327455441,1716079855879,-550.17,0.00027671,2]
[327455442,1716079855891,-500.0,0.00027671,2]
[327455443,1716079855901,-577.21,0.00027671,2]
[327455444,1716079855910,-1512.87,0.00027671,2]
[327455445,1716079855919,-697.0,0.00027671,2]
[327455446,1716079855931,-500.0,0.00027671,2]
[327455447,1716079855941,-2533.85,0.00027671,2]
[327455448,1716079855950,-679.17,0.00027671,2]
[327455449,1716079855960,-965.18,0.00027671,2]
[327455450,1716079855970,-1281.95,0.00027671,2]
[327455451,1716079855980,-500.0,0.00027671,2]
[327455452,1716079855989,-500.0,0.00027671,2]
[327455453,1716079856001,-500.0,0.00027671,2]
[327455454,1716079856010,-500.0,0.00027671,2]
[327455455,1716079856019,-500.0,0.00027671,2]
[327455456,1716079856029,-157.051909,0.00027748,20]
[327455457,1716079856039,-5511.44306344,0.00027754,2]
[327455458,1716079856048,-500.0,0.00027945,2]
[327455459,1716079856057,-500.0,0.00027945,2]
[327455460,1716079856067,-500.0,0.00027945,2]
[327455461,1716079856076,-500.0,0.00027945,2]
[327455462,1716079856086,-500.0,0.00027945,2]
[327455463,1716079856096,-500.0,0.00027945,2]
[327455464,1716079856105,-500.0,0.00027945,2]
[327455465,1716079856114,-500.0,0.00027945,2]
[327455466,1716079856123,-694.12,0.00027945,2]
[327455467,1716079856132,-151.0,0.00027945,7]
[327455468,1716079856141,-500.0,0.00027945,2]
[327455469,1716079856151,-500.0,0.00027945,2]
[327455470,1716079856160,-500.0,0.00027945,2]
[327455471,1716079856169,-500.0,0.00027945,2]
[327455472,1716079856178,-500.0,0.00027945,2]
[327455473,1716079856188,-566.02,0.00027945,2]
[327455474,1716079856197,-500.0,0.00027945,2]
[327455475,1716079856206,-500.0,0.00027945,2]
[327455476,1716079856216,-500.0,0.00027945,2]
[327455477,1716079856225,-500.0,0.00027945,2]
[327455478,1716079856234,-500.0,0.00027945,2]
[327455479,1716079856243,-608.41,0.00027945,2]
[327455480,1716079856254,-500.0,0.00027945,2]
[327455481,1716079856263,-500.0,0.00027945,2]
[327455482,1716079856272,-1131.97,0.00027945,2]
[327455483,1716079856281,-500.0,0.00027945,2]
[327455484,1716079856290,-151.0,0.00027945,7]
[327455485,1716079856300,-151.0,0.00027945,7]
[327455486,1716079856309,-579.57,0.00027945,2]
[327455487,1716079856319,-151.83510145,0.00027945,7]
[327455488,1716079856328,-500.0,0.00027945,2]
[327455489,1716079856338,-500.0,0.00027945,2]
[327455490,1716079856347,-500.0,0.00027945,2]
[327455491,1716079856356,-151.0,0.00027945,7]
[327455492,1716079856366,-500.0,0.00027945,2]
[327455493,1716079856375,-500.0,0.00027945,2]
[327455494,1716079856384,-500.0,0.00027945,2]
[327455495,1716079856393,-500.09,0.00027945,2]
[327455496,1716079856403,-500.0,0.00027945,2]
[327455497,1716079856412,-151.0,0.00027945,7]
[327455498,1716079856421,-873.62,0.00027945,2]
[327455499,1716079856431,-500.0,0.00027945,2]
[327455500,1716079856440,-500.0,0.00027945,2]
[327455501,1716079856449,-500.0,0.00027945,2]
[327455502,1716079856459,-500.0,0.00027945,2]
[327455503,1716079856468,-500.0,0.00027945,2]
[327455504,1716079856478,-366.90675217,0.00027945,2]
[327455505,1716079856487,-176.063461,0.00027945,7]
[327455506,1716079856497,-186.229229,0.00027945,7]
[327455507,1716079856507,-176.063461,0.00027945,7]
[327455508,1716079856516,-500.0,0.00027945,2]
[327455509,1716079856526,-500.0,0.00027945,2]
[327455510,1716079856535,-500.0,0.00027945,2]
[327455511,1716079856545,-648.09,0.00027945,2]
[327455512,1716079856554,-523.3,0.00027945,2]
[327455513,1716079856563,-500.0,0.00027945,2]
[327455514,1716079856573,-278.642658,0.00027945,7]
[327455515,1716079856582,-500.0,0.00027945,2]
[327455516,1716079856591,-500.0,0.00027945,2]
[327455517,1716079856601,-500.0,0.00027945,2]
[327455518,1716079856610,-500.0,0.00027945,2]
[327455519,1716079856619,-278.642658,0.00027945,7]
[327455520,1716079856629,-500.0,0.00027945,2]
[327455521,1716079856639,-801.03,0.00027945,2]
[327455522,1716079856649,-558.63,0.00027945,2]
[327455523,1716079856659,-229.00150754,0.00027945,2]
[327455524,1716079856669,-799.77,0.00027945,2]
[327455525,1716079856679,-591.98,0.00027945,2]
[327455526,1716079856688,-500.0,0.00027945,2]
[327455527,1716079856698,-500.0,0.00027945,2]
[327455528,1716079856707,-892.31,0.00027945,2]
[327455529,1716079856717,-500.0,0.00027945,2]
[327455530,1716079856725,-464.916911,0.00027945,7]
[327455531,1716079856735,-500.0,0.00027945,2]
[327455532,1716079856745,-655.12,0.00027945,2]
[327455533,1716079856755,-616.57,0.00027945,2]
[327455534,1716079856765,-517.62,0.00027945,2]
[327455535,1716079856774,-500.0,0.00027945,2]
[327455536,1716079856783,-500.0,0.00027945,2]
[327455537,1716079856794,-500.0,0.00027945,2]